fUSD/lending_fUSD_20241104
["ID","MTS","AMOUNT","RATE_DAILY","PERIOD"]
[341230752,1730706645044,-500.0,0.00035616,2]
[341230753,1730706645054,-500.0,0.00035616,2]
[341230754,1730706645063,-500.0,0.00035616,2]
[341230755,1730706645074,-500.0,0.00035616,2]
[341230756,1730706645083,-236.18385695,0.00035616,2]
[341230757,1730706645093,-500.0,0.00035616,2]
[341230758,1730706645103,-500.0,0.00035616,2]
[341230759,1730706645113,-500.0,0.00035616,2]
[341230760,1730706645123,-500.0,0.00035616,2]
[341230761,1730706645133,-598.91,0.00035616,2]
[341230762,1730706645143,-500.0,0.00035616,2]
[341230763,1730706645153,-511.29213088,0.00035616,2]
[341230764,1730706645163,-315.90155066,0.00035616,2]
[341230765,1730706645173,-500.0,0.00035616,2]
[341230766,1730706645183,-500.0,0.00035616,2]
[341230767,1730706645192,-500.0,0.00035616,2]
[341230768,1730706645203,-500.0,0.00035616,2]
[341230769,1730706645213,-500.0,0.00035616,2]
[341230770,1730706645223,-630.40399053,0.00035616,2]
[341230771,1730706645233,-500.0,0.00035616,2]
[341230772,1730706645243,-561.05211182,0.00035616,2]
[341230773,1730706645253,-567.60185634,0.00035616,2]
[341230774,1730706645262,-500.0,0.00035616,2]
[341230775,1730706645272,-500.0,0.00035616,2]
[341230776,1730706645281,-502.40578789,0.00035616,2]
[341230777,1730706645290,-500.0,0.00035616,2]
[341230778,1730706645299,-500.0,0.00035616,2]
[341230779,1730706645308,-514.9802992,0.00035616,2]
[341230780,1730706645318,-541.53715605,0.00035616,2]
[341230781,1730706645328,-519.07352963,0.00035616,2]
[341230782,1730706645346,-458.27917703,0.00035616,2]
[341230783,1730706645357,-407.0200082,0.00035616,2]
[341230785,1730706645367,-504.69399496,0.00035616,2]
[341230787,1730706645377,-500.0,0.00035616,2]
[341230789,1730706645387,-511.35984431,0.00035616,2]
[341230790,1730706645397,-500.0,0.00035616,2]
[341230791,1730706645406,-500.0,0.00035616,2]
[341230792,1730706645415,-500.0,0.00035616,2]
[341230793,1730706645424,-351.74091137,0.00035616,2]
[341230794,1730706645434,-500.0,0.00035616,2]
[341230795,1730706645443,-506.56921268,0.00035616,2]
[341230796,1730706645452,-504.34880918,0.00035616,2]
[341230797,1730706645462,-156.548125,0.00035616,7]
[341230798,1730706645471,-500.25018209,0.00035616,2]
[341230799,1730706645481,-500.0,0.00035616,2]
[341230800,1730706645492,-500.0,0.00035616,2]
[341230801,1730706645502,-158.679042,0.00035616,7]
[341230802,1730706645512,-500.0,0.00035616,2]
[341230803,1730706645522,-506.20080425,0.00035616,2]
[341230804,1730706645532,-500.0,0.00035616,2]
[341230805,1730706645542,-633.66384166,0.00035616,2]
[341230806,1730706645551,-500.0,0.00035616,2]
[341230807,1730706645561,-882.73,0.00035616,2]
[341230808,1730706645571,-168.196323,0.00035616,7]
[341230809,1730706645581,-500.0,0.00035616,2]
[341230810,1730706645590,-536.54730385,0.00035616,2]
[341230811,1730706645601,-500.0,0.00035616,2]
[341230812,1730706645610,-230.38711393,0.00035616,2]
[341230813,1730706645620,-513.9566542,0.00035616,2]
[341230814,1730706645630,-505.78038903,0.00035616,2]
[341230815,1730706645640,-493.33694376,0.00035616,2]
[341230816,1730706645649,-500.0,0.00035616,2]
[341230817,1730706645659,-301.62504116,0.00035616,2]
[341230818,1730706645670,-500.0,0.00035616,2]
[341230819,1730706645679,-521.12546081,0.00035616,2]
[341230820,1730706645689,-500.0,0.00035616,2]
[341230821,1730706645698,-1038.01,0.00035616,2]
[341230822,1730706645708,-500.0,0.00035616,2]
[341230823,1730706645718,-500.0,0.00035616,2]
[341230824,1730706645727,-500.0,0.00035616,2]
[341230825,1730706645738,-196.442371,0.00035616,7]
[341230826,1730706645748,-559.33,0.00035616,2]
[341230827,1730706645758,-276.811437,0.00035616,7]
[341230828,1730706645769,-510.26625681,0.00035616,2]
[341230829,1730706645779,-2119.8,0.00035616,2]
[341230830,1730706645788,-636.33,0.00035616,2]
[341230831,1730706645798,-500.0,0.00035616,2]
[341230832,1730706645807,-151.0,0.00035616,7]
[341230833,1730706645817,-620.24513101,0.00035616,2]
[341230834,1730706645827,-272.4847565,0.00035616,2]
[341230835,1730706645836,-500.0,0.00035616,2]
[341230836,1730706645846,-324.93779421,0.00035616,2]
[341230837,1730706645856,-276.811437,0.00035616,7]
[341230838,1730706645866,-500.0,0.00035616,2]
[341230839,1730706645875,-500.0,0.00035616,2]
[341230840,1730706645885,-500.0,0.00035616,2]
[341230841,1730706645895,-500.0,0.00035616,2]
[341230842,1730706645904,-500.0,0.00035616,2]
[341230843,1730706645914,-500.0,0.00035616,2]
[341230844,1730706645924,-398.72009965,0.00035616,2]
[341230846,1730706645934,-855.96,0.00035616,2]
[341230847,1730706645943,-500.0,0.00035616,2]
[341230848,1730706645953,-500.0,0.00035616,2]
[341230849,1730706645963,-519.47782513,0.00035616,2]
[341230850,1730706645973,-1376.22,0.00035616,2]
[341230851,1730706645983,-500.0,0.00035616,2]
[341230852,1730706645993,-355.07966613,0.00035616,2]
[341230854,1730706646003,-1148.2,0.00035616,2]
[341230855,1730706646012,-516.88593011,0.00035616,2]
[341230856,1730706646021,-500.0,0.00035616,2]
[341230857,1730706646031,-503.52625782,0.00035616,2]
[341230858,1730706646041,-500.0,0.00035616,2]
[341230859,1730706646051,-510.60260547,0.00035616,2]
[341230860,1730706646060,-509.07717556,0.00035616,2]
[341230861,1730706646071,-502.19156645,0.00035616,2]
[341230862,1730706646080,-500.0,0.00035616,2]
[341230863,1730706646090,-500.0,0.00035616,2]
[341230864,1730706646101,-500.0,0.00035616,2]
[341230865,1730706646111,-500.0,0.00035616,2]
[341230866,1730706646121,-517.75827656,0.00035616,2]
[341230867,1730706646131,-273.32309545,0.00035616,2]
[341230868,1730706646142,-500.0,0.00035616,2]
[341230869,1730706646152,-500.0,0.00035616,2]
[341230870,1730706646163,-500.0,0.00035616,2]
[341230871,1730706646175,-500.0,0.00035616,2]
[341230872,1730706646185,-503.11812484,0.00035616,2]
[341230873,1730706646194,-500.0,0.00035616,2]
[341230874,1730706646204,-500.0,0.00035616,2]
[341230875,1730706646213,-520.18617845,0.00035616,2]
[341230876,1730706646223,-500.0,0.00035616,2]
[341230877,1730706646234,-500.0,0.00035616,2]
[341230878,1730706646243,-204.59585299,0.00035616,2]
[341230879,1730706646253,-204.799201,0.00035616,7]
[341230880,1730706646263,-500.0,0.00035616,2]
[341230881,1730706646272,-500.0,0.00035616,2]
[341230882,1730706646282,-502.79,0.00035616,2]
[341230883,1730706646292,-500.0,0.00035616,2]
[341230884,1730706646301,-500.0,0.00035616,2]
[341230885,1730706646312,-550.01,0.00035616,2]
[341230886,1730706646321,-500.0,0.00035616,2]
[341230887,1730706646331,-513.3985554,0.00035616,2]
[341230888,1730706646341,-500.0,0.00035616,2]
[341230889,1730706646350,-151.0,0.00035616,7]
[341230890,1730706646360,-518.17173155,0.00035616,2]
[341230891,1730706646370,-500.0,0.00035616,2]
[341230892,1730706646382,-507.30818482,0.00035616,2]
[341230893,1730706646392,-519.83603469,0.00035616,2]
[341230894,1730706646403,-549.21972324,0.00035616,2]
[341230895,1730706646413,-500.0,0.00035616,2]
[341230896,1730706646423,-508.45674796,0.00035616,2]
[341230897,1730706646432,-515.18415356,0.00035616,2]
[341230898,1730706646441,-500.0,0.00035616,2]
[341230899,1730706646452,-502.39690071,0.00035616,2]
[341230900,1730706646547,-528.74658981,0.00035616,2]
[341230901,1730706646570,-534.75202253,0.00035616,2]
[341230902,1730706646579,-500.0,0.00035616,2]
[341230903,1730706646589,-500.0,0.00035616,2]
[341230904,1730706646598,-500.0,0.00035616,2]
[341230905,1730706646607,-624.45376992,0.00035616,2]
[341230906,1730706646616,-500.0,0.00035616,2]
[341230907,1730706646625,-500.0,0.00035616,2]
[341230908,1730706646634,-500.0,0.00035616,2]
[341230909,1730706646643,-500.0,0.00035616,2]
[341230910,1730706646653,-570.49,0.00035616,2]
[341230911,1730706646662,-500.0,0.00035616,2]
[341230912,1730706646671,-506.02725642,0.00035616,2]
[341230913,1730706646680,-500.0,0.00035616,2]
[341230914,1730706646690,-500.0,0.00035616,2]
[341230915,1730706646702,-500.0,0.00035616,2]
[341230916,1730706646713,-573.30850499,0.00035616,2]
[341230917,1730706646725,-546.54893419,0.00035616,2]
[341230918,1730706646735,-500.0,0.00035616,2]
[341230919,1730706646743,-601.01695559,0.00035616,2]
[341230920,1730706646753,-500.0,0.00035616,2]
[341230921,1730706646762,-500.0,0.00035616,2]
[341230922,1730706646771,-1083.55,0.00035616,2]
[341230923,1730706646780,-500.0,0.00035616,2]
[341230924,1730706646790,-500.0,0.00035616,2]
[341230925,1730706646799,-511.39035264,0.00035616,2]
[341230926,1730706646809,-500.0,0.00035616,2]
[341230927,1730706646819,-161.71606481,0.00035616,2]
[341230928,1730706646829,-151.0,0.00035616,7]
[341230929,1730706646839,-500.0,0.00035616,2]
[341230930,1730706646849,-500.0,0.00035616,2]
[341230931,1730706646860,-500.0,0.00035616,2]
[341230932,1730706646870,-151.0,0.00035616,7]
[341230933,1730706646879,-511.05249528,0.00035616,2]
[341230934,1730706646888,-500.0,0.00035616,2]
[341230935,1730706646898,-500.0,0.00035616,2]
[341230936,1730706646907,-500.0,0.00035616,2]
[341230937,1730706646918,-500.0,0.00035616,2]
[341230938,1730706646928,-621.14309289,0.00035616,2]
[341230939,1730706646938,-500.0,0.00035616,2]
[341230940,1730706646949,-500.0,0.00035616,2]
[341230941,1730706646958,-500.0,0.00035616,2]
[341230942,1730706646968,-500.0,0.00035616,2]
[341230943,1730706646976,-500.0,0.00035616,2]
[341230944,1730706646986,-500.0,0.00035616,2]
[341230945,1730706646995,-500.0,0.00035616,2]
[341230946,1730706647004,-500.0,0.00035616,2]
[341230947,1730706647013,-500.0,0.00035616,2]
[341230948,1730706647023,-500.0,0.00035616,2]
[341230949,1730706647033,-154.922829,0.00035616,7]
[341230950,1730706647043,-151.0,0.00035616,7]
[341230951,1730706647053,-500.0,0.00035616,2]
[341230952,1730706647062,-500.0,0.00035616,2]
[341230953,1730706647071,-500.0,0.00035616,2]
[341230954,1730706647082,-500.0,0.00035616,2]
[341230955,1730706647091,-500.0,0.00035616,2]
[341230956,1730706647100,-506.51792344,0.00035616,2]
[341230957,1730706647110,-500.0,0.00035616,2]
[341230958,1730706647119,-620.66,0.00035616,2]
[341230959,1730706647128,-500.0,0.00035616,2]
[341230960,1730706647138,-500.0,0.00035616,2]
[341230961,1730706647148,-658.4,0.00035616,2]
[341230962,1730706647157,-537.36616093,0.00035616,2]
[341230963,1730706647167,-500.0,0.00035616,2]
[341230964,1730706647176,-509.64360794,0.00035616,2]
[341230965,1730706647186,-500.0,0.00035616,2]
[341230966,1730706647195,-500.0,0.00035616,2]
[341230967,1730706647204,-625.32,0.00035616,2]
[341230968,1730706647214,-151.0,0.00035616,7]
[341230969,1730706647223,-432.99370036,0.00035616,2]
[341230970,1730706647234,-500.0,0.00035616,2]
[341230971,1730706647243,-500.0,0.00035616,2]
[341230972,1730706647253,-502.92947622,0.00035616,2]
[341230973,1730706647262,-500.0,0.00035616,2]
[341230974,1730706647271,-500.0,0.00035616,2]
[341230975,1730706647281,-500.0,0.00035616,2]
[341230976,1730706647290,-580.91,0.00035616,2]
[341230977,1730706647299,-500.0,0.00035616,2]
[341230978,1730706647308,-500.0,0.00035616,2]
[341230979,1730706647317,-5483.23,0.00035616,2]
[341230980,1730706647328,-557.48,0.00035616,2]
[341230981,1730706647337,-500.0,0.00035616,2]
[341230982,1730706647347,-500.0,0.00035616,2]
[341230983,1730706647356,-637.29,0.00035616,2]
[341230984,1730706647365,-500.0,0.00035616,2]
[341230985,1730706647374,-500.0,0.00035616,2]
[341230986,1730706647383,-500.0,0.00035616,2]
[341230987,1730706647392,-500.0,0.00035616,2]
[341230988,1730706647401,-500.0,0.00035616,2]
[341230989,1730706647411,-500.0,0.00035616,2]
[341230990,1730706647420,-500.0,0.00035616,2]
[341230991,1730706647429,-500.0,0.00035616,2]
[341230992,1730706647438,-500.0,0.00035616,2]
[341230993,1730706647446,-500.0,0.00035616,2]
[341230994,1730706647455,-500.0,0.00035616,2]
[341230995,1730706647464,-529.96645364,0.00035616,2]
[341230996,1730706647474,-153.0,0.00035616,2]
[341230997,1730706647483,-153.0,0.00035616,2]
[341230998,1730706647492,-500.0,0.00035673,5]
[341230999,1730706647502,-160.18804809,0.00035673,5]
[341231000,1730706647511,-163.23701327,0.00035673,5]
[341231001,1730706647520,-166.78,0.00035796,2]
[341231002,1730706647530,-188.98746146,0.0003589,2]
[341231003,1730706647539,-500.0,0.0003589,2]
[341231004,1730706647548,-512.68246716,0.0003589,2]
[341231005,1730706647558,-500.0,0.0003589,2]
[341231006,1730706647567,-318.5,0.0003589,2]
[341231007,1730706647576,-500.0,0.0003589,2]
[341231008,1730706647585,-276.33642971,0.0003589,2]
[341231009,1730706647595,-500.0,0.0003589,2]
[341231010,1730706647603,-500.0,0.0003589,2]
[341231011,1730706647613,-500.0,0.0003589,2]
[341231012,1730706647622,-500.0,0.0003589,2]
[341231013,1730706647633,-500.0,0.0003589,2]
[341231014,1730706647643,-520.25119356,0.0003589,2]
[341231015,1730706647652,-500.0,0.0003589,2]
[341231016,1730706647662,-500.0,0.0003589,2]
[341231017,1730706647671,-500.0,0.0003589,2]
[341231018,1730706647681,-500.0,0.0003589,2]
[341231019,1730706647690,-500.0,0.0003589,2]
[341231020,1730706647699,-151.0,0.0003589,7]
[341231021,1730706647708,-500.0,0.0003589,2]
[341231022,1730706647718,-151.0,0.0003589,7]
[341231023,1730706647727,-500.0,0.0003589,2]
[341231024,1730706647737,-500.0,0.0003589,2]
[341231025,1730706647746,-500.0,0.0003589,2]
[341231026,1730706647755,-500.0,0.0003589,2]
[341231027,1730706647765,-500.0,0.0003589,2]
[341231028,1730706647774,-500.0,0.0003589,2]
[341231029,1730706647783,-500.0,0.0003589,2]
[341231030,1730706647793,-500.0,0.0003589,2]
[341231031,1730706647802,-500.0,0.0003589,2]
[341231032,1730706647812,-500.0,0.0003589,2]
[341231033,1730706647821,-500.0,0.0003589,2]
[341231034,1730706647830,-500.0,0.0003589,2]
[341231035,1730706647839,-500.0,0.0003589,2]
[341231036,1730706647849,-500.0,0.0003589,2]
[341231037,1730706647858,-500.0,0.0003589,2]
[341231038,1730706647867,-500.0,0.0003589,2]
[341231039,1730706647876,-500.0,0.0003589,2]
[341231040,1730706647886,-500.0,0.0003589,2]
[341231041,1730706647896,-500.0,0.0003589,2]
[341231042,1730706647905,-500.0,0.0003589,2]
[341231043,1730706647914,-500.0,0.0003589,2]
[341231044,1730706647923,-500.0,0.0003589,2]
[341231045,1730706647932,-500.0,0.0003589,2]
[341231046,1730706647942,-500.0,0.0003589,2]
[341231047,1730706647951,-500.0,0.0003589,2]
[341231048,1730706647960,-500.0,0.0003589,2]
[341231049,1730706647970,-500.0,0.0003589,2]
[341231050,1730706647979,-500.0,0.0003589,2]
[341231051,1730706647994,-500.0,0.0003589,2]
[341231052,1730706648004,-500.0,0.0003589,2]
[341231053,1730706648013,-500.0,0.0003589,2]
[341231054,1730706648023,-186.30533133,0.0003589,2]
[341231055,1730706648032,-500.0,0.0003589,2]
[341231056,1730706648042,-281.48060905,0.0003589,2]
[341231057,1730706648051,-154.609533,0.0003589,7]
[341231058,1730706648061,-500.0,0.0003589,2]
[341231059,1730706648071,-500.0,0.0003589,2]
[341231060,1730706648080,-500.0,0.0003589,2]
[341231061,1730706648090,-500.0,0.0003589,2]
[341231062,1730706648100,-500.0,0.0003589,2]
[341231063,1730706648110,-500.0,0.0003589,2]
[341231064,1730706648120,-218.23951842,0.0003589,2]
[341231065,1730706648129,-548.24836215,0.0003589,2]
[341231066,1730706648139,-500.0,0.0003589,2]
[341231067,1730706648148,-500.0,0.0003589,2]
[341231068,1730706648159,-500.0,0.0003589,2]
[341231069,1730706648169,-500.0,0.0003589,2]
[341231070,1730706648179,-150.0,0.0003589,2]
[341231071,1730706648189,-2000.0,0.0003589,2]
[341231072,1730706648199,-500.0,0.0003589,2]
[341231073,1730706648210,-533.45207765,0.0003589,2]
[341231074,1730706648219,-298.84777295,0.0003589,2]
[341231075,1730706648229,-500.0,0.0003589,2]
[341231076,1730706648241,-500.0,0.0003589,2]
[341231077,1730706648250,-500.0,0.0003589,2]
[341231078,1730706648260,-151.0,0.0003589,7]
[341231079,1730706648271,-500.0,0.0003589,2]
[341231080,1730706648280,-500.0,0.0003589,2]
[341231081,1730706648290,-500.0,0.0003589,2]
[341231082,1730706648299,-500.0,0.0003589,2]
[341231083,1730706648308,-500.0,0.0003589,2]
[341231084,1730706648318,-500.0,0.0003589,2]
[341231085,1730706648327,-500.0,0.0003589,2]
[341231086,1730706648336,-500.0,0.0003589,2]
[341231087,1730706648346,-500.0,0.0003589,2]
[341231088,1730706648355,-500.0,0.0003589,2]
[341231089,1730706648364,-500.0,0.0003589,2]
[341231090,1730706648375,-500.0,0.0003589,2]
[341231091,1730706648385,-922.57,0.0003589,2]
[341231092,1730706648394,-500.0,0.0003589,2]
[341231093,1730706648404,-500.0,0.0003589,2]
[341231094,1730706648414,-500.0,0.0003589,2]
[341231095,1730706648424,-500.0,0.0003589,2]
[341231096,1730706648433,-500.0,0.0003589,2]
[341231097,1730706648442,-500.0,0.0003589,2]
[341231098,1730706648453,-500.0,0.0003589,2]
[341231099,1730706648463,-500.0,0.0003589,2]
[341231100,1730706648473,-500.0,0.0003589,2]
[341231101,1730706648483,-500.0,0.0003589,2]
[341231102,1730706648497,-500.0,0.0003589,2]
[341231103,1730706648506,-500.0,0.0003589,2]
[341231104,1730706648515,-500.0,0.0003589,2]
[341231105,1730706648525,-500.0,0.0003589,2]
[341231106,1730706648536,-500.0,0.0003589,2]
[341231107,1730706648546,-532.93926917,0.0003589,2]
[341231108,1730706648555,-500.0,0.0003589,2]
[341231109,1730706648564,-500.0,0.0003589,2]
[341231110,1730706648574,-500.0,0.0003589,2]
[341231111,1730706648583,-500.0,0.0003589,2]
[341231112,1730706648593,-500.0,0.0003589,2]
[341231113,1730706648602,-487.02917016,0.0003589,2]
[341231114,1730706648611,-264.768914,0.0003589,7]
[341231115,1730706648620,-500.0,0.0003589,2]
[341231116,1730706648630,-500.0,0.0003589,2]
[341231117,1730706648640,-500.0,0.0003589,2]
[341231118,1730706648649,-500.0,0.0003589,2]
[341231119,1730706648659,-500.0,0.0003589,2]
[341231120,1730706648669,-500.0,0.0003589,2]
[341231121,1730706648678,-151.0,0.0003589,7]
[341231122,1730706648688,-300.0,0.0003589,2]
[341231123,1730706648698,-500.0,0.0003589,2]
[341231124,1730706648707,-500.0,0.0003589,2]
[341231125,1730706648716,-500.0,0.0003589,2]
[341231126,1730706648725,-500.0,0.0003589,2]
[341231127,1730706648830,-533.92240709,0.0003589,2]
[341231128,1730706648839,-500.0,0.0003589,2]
[341231129,1730706648848,-531.02096416,0.0003589,2]
[341231130,1730706648858,-511.69767628,0.0003589,2]
[341231131,1730706648867,-500.0,0.0003589,2]
[341231132,1730706648876,-524.18698878,0.0003589,2]
[341231133,1730706648885,-512.8332366,0.0003589,2]
[341231134,1730706648895,-500.0,0.0003589,2]
[341231135,1730706648904,-500.0,0.0003589,2]
[341231136,1730706648913,-515.95241323,0.0003589,2]
[341231137,1730706648922,-500.0,0.0003589,2]
[341231138,1730706648931,-500.0,0.0003589,2]
[341231139,1730706648941,-500.0,0.0003589,2]
[341231140,1730706648950,-500.0,0.0003589,2]
[341231141,1730706648960,-500.0,0.0003589,2]
[341231142,1730706648969,-508.72734304,0.0003589,2]
[341231143,1730706648978,-500.0,0.0003589,2]
[341231144,1730706648989,-500.0,0.0003589,2]
[341231145,1730706648999,-503.57,0.0003589,2]
[341231146,1730706649008,-500.0,0.0003589,2]
[341231147,1730706649017,-512.62640047,0.0003589,2]
[341231148,1730706649026,-174.39,0.0003589,2]
[341231149,1730706649035,-258.40514346,0.0003589,2]
[341231150,1730706649045,-500.0,0.0003589,2]
[341231151,1730706649054,-500.0,0.0003589,2]
[341231152,1730706649064,-500.0,0.0003589,2]
[341231153,1730706649073,-500.0,0.0003589,2]
[341231154,1730706649082,-500.0,0.0003589,2]
[341231155,1730706649092,-500.0,0.0003589,2]
[341231156,1730706649101,-500.0,0.0003589,2]
[341231157,1730706649111,-500.0,0.0003589,2]
[341231158,1730706649120,-500.0,0.0003589,2]
[341231159,1730706649130,-500.0,0.0003589,2]
[341231160,1730706649139,-500.0,0.0003589,2]
[341231161,1730706649148,-151.0,0.0003589,7]
[341231162,1730706649157,-500.0,0.0003589,2]
[341231163,1730706649167,-500.0,0.0003589,2]
[341231164,1730706649176,-500.0,0.0003589,2]
[341231165,1730706649186,-500.0,0.0003589,2]
[341231166,1730706649195,-500.0,0.0003589,2]
[341231167,1730706649204,-500.0,0.0003589,2]
[341231168,1730706649214,-500.0,0.0003589,2]
[341231169,1730706649223,-500.0,0.0003589,2]
[341231170,1730706649232,-1260.4,0.0003589,2]
[341231171,1730706649242,-500.0,0.0003589,2]
[341231172,1730706649251,-500.0,0.0003589,2]
[341231173,1730706649260,-250.0,0.0003589,2]
[341231174,1730706649269,-500.0,0.0003589,2]
[341231175,1730706649279,-153.45082509,0.0003589,2]
[341231176,1730706649288,-520.9740529,0.0003589,2]
[341231177,1730706649297,-500.0,0.0003589,2]
[341231178,1730706649306,-500.0,0.0003589,2]
[341231179,1730706649315,-1008.77,0.0003589,2]
[341231180,1730706649324,-500.0,0.0003589,2]
[341231181,1730706649334,-552.59,0.0003589,2]
[341231182,1730706649343,-500.0,0.0003589,2]
[341231183,1730706649353,-500.0,0.0003589,2]
[341231184,1730706649362,-500.0,0.0003589,2]
[341231185,1730706649371,-500.0,0.0003589,2]
[341231186,1730706649379,-500.0,0.0003589,2]
[341231187,1730706649389,-200.0,0.0003589,2]
[341231188,1730706649398,-500.0,0.0003589,2]
[341231189,1730706649407,-764.99,0.0003589,2]
[341231190,1730706649416,-680.74,0.0003589,2]
[341231191,1730706649426,-500.0,0.0003589,2]
[341231192,1730706649436,-500.0,0.0003589,2]
[341231193,1730706649445,-518.58966064,0.0003589,2]
[341231194,1730706649455,-500.0,0.0003589,2]
[341231195,1730706649464,-517.44467794,0.0003589,2]
[341231196,1730706649473,-500.0,0.0003589,2]
[341231197,1730706649482,-500.0,0.0003589,2]
[341231198,1730706649493,-500.0,0.0003589,2]
[341231199,1730706649502,-500.0,0.0003589,2]
[341231200,1730706649511,-500.0,0.0003589,2]
[341231201,1730706649521,-500.0,0.0003589,2]
[341231202,1730706649530,-500.0,0.0003589,2]
[341231203,1730706649539,-500.0,0.0003589,2]
[341231204,1730706649548,-500.0,0.0003589,2]
[341231205,1730706649557,-500.0,0.0003589,2]
[341231206,1730706649566,-500.0,0.0003589,2]
[341231207,1730706649575,-500.0,0.0003589,2]
[341231208,1730706649584,-500.0,0.0003589,2]
[341231209,1730706649593,-500.0,0.0003589,2]
[341231210,1730706649603,-500.0,0.0003589,2]
[341231211,1730706649612,-500.0,0.0003589,2]
[341231212,1730706649621,-500.0,0.0003589,2]
[341231213,1730706649630,-500.0,0.0003589,2]
[341231214,1730706649639,-500.0,0.0003589,2]
[341231215,1730706649649,-500.0,0.0003589,2]
[341231216,1730706649658,-500.0,0.0003589,2]
[341231217,1730706649667,-317.25531817,0.0003589,2]
[341231218,1730706649676,-632.90446045,0.0003589,2]
[341231219,1730706649685,-500.0,0.0003589,2]
[341231220,1730706649695,-500.0,0.0003589,2]
[341231221,1730706649704,-500.0,0.0003589,2]
[341231222,1730706649713,-882.73,0.0003589,2]
[341231223,1730706649722,-561.30946187,0.0003589,2]
[341231224,1730706649731,-500.0,0.0003589,2]
[341231225,1730706649742,-158.41086789,0.0003589,2]
[341231226,1730706649751,-500.0,0.0003589,2]
[341231227,1730706649762,-416.32913689,0.0003589,2]
[341231228,1730706649772,-1038.01,0.0003589,2]
[341231229,1730706649782,-500.0,0.0003589,2]
[341231230,1730706649791,-276.811437,0.0003589,7]
[341231231,1730706649800,-2119.8,0.0003589,2]
[341231232,1730706649810,-636.33,0.0003589,2]
[341231233,1730706649819,-500.0,0.0003589,2]
[341231234,1730706649829,-276.811437,0.0003589,7]
[341231235,1730706649838,-500.0,0.0003589,2]
[341231236,1730706649847,-500.0,0.0003589,2]
[341231237,1730706649856,-364.74859453,0.0003589,2]
[341231238,1730706649865,-500.0,0.0003589,2]
[341231239,1730706649878,-855.96,0.0003589,2]
[341231240,1730706649887,-500.0,0.0003589,2]
[341231241,1730706649896,-500.0,0.0003589,2]
[341231242,1730706649905,-1376.22,0.0003589,2]
[341231243,1730706649914,-500.0,0.0003589,2]
[341231244,1730706649924,-1148.2,0.0003589,2]
[341231245,1730706649934,-554.01858659,0.0003589,2]
[341231246,1730706649944,-500.0,0.0003589,2]
[341231247,1730706649953,-500.0,0.0003589,2]
[341231248,1730706649962,-500.0,0.0003589,2]
[341231249,1730706649971,-500.0,0.0003589,2]
[341231250,1730706649980,-559.09228477,0.0003589,2]
[341231251,1730706649990,-500.0,0.0003589,2]
[341231252,1730706649999,-500.0,0.0003589,2]
[341231253,1730706650009,-500.0,0.0003589,2]
[341231254,1730706650018,-500.0,0.0003589,2]
[341231255,1730706650028,-500.0,0.0003589,2]
[341231256,1730706650037,-500.0,0.0003589,2]